{"text_format":"1","workbook":"xlsx","n_sheets":10,"sheets":["Sommaire des exercices","guide TD1","TD1 en acte","guide TD2","TD 2 en acte","TD 2 en acte secours","barêmes","guide TD3","TD 3 en acte","modèle simple du TD3"],"not_rendered":{"charts":0,"images":15,"macros":1,"external_links":0,"defined_names":0,"comments":0,"pivot_tables":0},"unopened":[],"bounds":{"document_bytes":16777216,"sheet_cells":100000,"rows_first":2000,"rows_last":500,"rows_between":2000,"halvings":0,"cell_chars":16384,"cell_head_chars":4096},"cells_cut":0,"cells_raw":0,"read":"whole","date_system":"1900"}

{"sheet":"Sommaire des exercices","index":0,"n_rows":18,"n_cols":8,"rows_kept":18,"cut":false,"hidden":false,"merged":[[0,7,5,9]]}
[null,null,null,null,null,null,null,"FORMATION TICE EPS\n\nMars 2020\n"]
[]
[]
[]
[]
[]
[]
[]
[]
[]
[]
["Liste des différents TD","Guide TD","Thèmes abordés",null,"Savoir faire techniques"]
[]
["TD n°1 en acte","Guide TD 1"," Pour créer votre première macro.",null,"Comprendre comment circuler dans excel, ajouter l'onglet développeur, autoriser ponctuellement  les macros."]
[]
["TD n°2 en acte","Guide TD 2","Créer votre première macro en enregistrant votre macro sans connaitre le code et observer le code que cela a engendré.",null,"Effacer des colonnes non contigues dans un tableau qui allterne performance et note.\nEnregistement de votre macro.\nAssocier votre macro à un bouton d'éxecution.\nCréer une macro pour trier un tableau."]
[]
["TD n°3 en acte","Guide TD 3","Créer personnellement votre première macro pour\n- dénombrer un ou des critères de réussite.\n- dénombrer un ou des critères de réalisation.\n-calculer des scores parlants.\n-faire les deux.\nTout cela en appuyant sur des boutons.         ",null,"Créer des boucles de dénombrements positives, négatives avec des valeurs itératives différentes.\nAssocier ces boucles à des boutons.\nA partir de ces résultats faire d'autres calculs dans la même feuille ou dans une autre feuille.\n"]

{"sheet":"guide TD1","index":1,"n_rows":21,"n_cols":1,"rows_kept":21,"cut":false,"hidden":false,"merged":[[9,0,9,16383]]}
[]
[]
[]
[]
[]
[]
[]
[]
[]
["Création d'une macro"]
["Insérer l'onglet développeur"]
["Aller dans fichier     -       options        -            personnaliser le ruban     -      cocher l'onglet développeur"]
[]
[]
[]
[]
[]
[]
[]
["Activer les macros"]
["Aller dans fichier   -   options   -     centre de gestion de la confidentialité  - paramètre du centre de gestion de la confidentialité  -   paramètre des macros  -   activer toutes les macros"]

{"sheet":"TD1 en acte","index":2,"n_rows":1,"n_cols":1,"rows_kept":1,"cut":false,"hidden":false,"merged":[[0,0,15,13]]}
["Bien, si vous en êtes là, c'est déjà pas mal, c'est que vous avez réussi à afficher l'onglet développeur  et activer les macros dans votre classeur, on est bien parti….."]

{"sheet":"guide TD2","index":3,"n_rows":32,"n_cols":1,"rows_kept":32,"cut":false,"hidden":false,"merged":[[8,0,8,16383],[13,0,13,16383],[16,0,16,16383],[25,0,25,16383],[31,0,31,16383]]}
[]
[]
[]
[]
[]
[]
[]
[]
["Enregister une macro"]
[]
["Developpeur     -    enregister une macro  (remplissez nom de la macro, touche de raccourci (facultatif), commentaire(facultatif)    -     sélectionner les colonnes que vous voulez effacer (attention dès que vous enregistrez la macro toutes les actions effectuées dans excel sont enregistrées). Pour effacer une colonne sur 2 d'un tableau, sélectionner la première colonne et appuyer sur ctrl pour étendre la sélection à d'autres colonnes. Effacer les colonnes sélectionnées."]
[]
[]
["Observer le code"]
[]
["Arrêter l'enregistrement\n Cliquer sur Développeur   -  Macros  - cliquer sur le nom de la macro  -  pas à pas détaillé  -  vous pouvez observer le code"]
["Associer un bouton à la macro"]
[]
["Cliquer sur insertion  -  dans l'onglet illustration cliquer sur forme  -  choisir une forme  -  insérer cette forme et la mettre en forme (vous pouvez changez la couleur, ajouter du texte dedans…)\nFaire un clic droit sur cette forme  -  cliquer sur associer une macro  -  choisir dans la liste le nom de la macro qu'il faut activer avec ce bouton."]
[]
[]
[]
[]
[]
[]
["création  d'une macro et d'un bouton de macro pour classer les élèves dans l'ordre de leur moyenne de note"]
[]
["Créer votre macro en l'enregistrant comme celle réalisée précédemment, appelée là tri_moyenne par exemple et créer un deuxième bouton pour activer cette macro. La colonne à partir de laquelle se fait le tri est la colonne K.\nPour effectuer un tri, sélectionner tous les champs du tableau à trier et utiliser Trier dans l'onglet donnée.\n"]
[]
[]
[]
["Observer le code de cette nouvelle macro"]

{"sheet":"TD 2 en acte","index":4,"n_rows":15,"n_cols":11,"rows_kept":15,"cut":false,"hidden":false,"merged":[]}
[]
[]
[]
[]
[]
[]
[]
[null,null,null,"sexe","Performance javelot(m)","note","Performance 60m plat (s)","note","Performance saut en longueur(m)","note","moyenne des notes"]
[null,"Paul","Louis","g",8,{"$f":"IF(D9=\"g\",VLOOKUP(E9,barêmes!$D$5:$F$34,2,TRUE),IF(D9=\"f\",VLOOKUP(E9,barêmes!$D$5:$F$34,3,TRUE),\"\"))","v":7},12.1,{"$f":"IF(D9=\"g\",VLOOKUP(G9,barêmes!$H$5:$J$28,2,TRUE),IF(D9=\"f\",VLOOKUP(G9,barêmes!$H$5:$J$28,3,TRUE),\"\"))","v":9.5},4.3,{"$f":"IF(D9=\"g\",VLOOKUP(I9,barêmes!$L$5:$N$28,2,TRUE),IF(D9=\"f\",VLOOKUP(I9,barêmes!$L$5:$N$28,3,TRUE), \"\"))","v":8},{"$f":"(F9+H9+J9)/3","v":8.1666666666666661}]
[null,"Rivoire","Tiffany","f",25,{"$f":"IF(D10=\"g\",VLOOKUP(E10,barêmes!$D$5:$F$34,2,TRUE),IF(D10=\"f\",VLOOKUP(E10,barêmes!$D$5:$F$34,3,TRUE),\"\"))","v":19},12,{"$f":"IF(D10=\"g\",VLOOKUP(G10,barêmes!$H$5:$J$28,2,TRUE),IF(D10=\"f\",VLOOKUP(G10,barêmes!$H$5:$J$28,3,TRUE),\"\"))","v":12},4.0999999999999996,{"$f":"IF(D10=\"g\",VLOOKUP(I10,barêmes!$L$5:$N$28,2,TRUE),IF(D10=\"f\",VLOOKUP(I10,barêmes!$L$5:$N$28,3,TRUE), \"\"))","v":8},13]
[null,"Lopez","Grégoire","g",27,{"$f":"IF(D11=\"g\",VLOOKUP(E11,barêmes!$D$5:$F$34,2,TRUE),IF(D11=\"f\",VLOOKUP(E11,barêmes!$D$5:$F$34,3,TRUE),\"\"))","v":19},12.4,{"$f":"IF(D11=\"g\",VLOOKUP(G11,barêmes!$H$5:$J$28,2,TRUE),IF(D11=\"f\",VLOOKUP(G11,barêmes!$H$5:$J$28,3,TRUE),\"\"))","v":8.5},4.8,{"$f":"IF(D11=\"g\",VLOOKUP(I11,barêmes!$L$5:$N$28,2,TRUE),IF(D11=\"f\",VLOOKUP(I11,barêmes!$L$5:$N$28,3,TRUE), \"\"))","v":13},13.5]
[null,"Gonzales","Gaétan","f",15,{"$f":"IF(D12=\"g\",VLOOKUP(E12,barêmes!$D$5:$F$34,2,TRUE),IF(D12=\"f\",VLOOKUP(E12,barêmes!$D$5:$F$34,3,TRUE),\"\"))","v":14},11.4,{"$f":"IF(D12=\"g\",VLOOKUP(G12,barêmes!$H$5:$J$28,2,TRUE),IF(D12=\"f\",VLOOKUP(G12,barêmes!$H$5:$J$28,3,TRUE),\"\"))","v":15},5,{"$f":"IF(D12=\"g\",VLOOKUP(I12,barêmes!$L$5:$N$28,2,TRUE),IF(D12=\"f\",VLOOKUP(I12,barêmes!$L$5:$N$28,3,TRUE), \"\"))","v":17},15.333333333333334]
[null,"Collin","Thierry","g",14,{"$f":"IF(D13=\"g\",VLOOKUP(E13,barêmes!$D$5:$F$34,2,TRUE),IF(D13=\"f\",VLOOKUP(E13,barêmes!$D$5:$F$34,3,TRUE),\"\"))","v":12},10.9,{"$f":"IF(D13=\"g\",VLOOKUP(G13,barêmes!$H$5:$J$28,2,TRUE),IF(D13=\"f\",VLOOKUP(G13,barêmes!$H$5:$J$28,3,TRUE),\"\"))","v":15.5},5.9,{"$f":"IF(D13=\"g\",VLOOKUP(I13,barêmes!$L$5:$N$28,2,TRUE),IF(D13=\"f\",VLOOKUP(I13,barêmes!$L$5:$N$28,3,TRUE), \"\"))","v":20},15.833333333333334]
[null,"Germain","Louis","g",15,{"$f":"IF(D14=\"g\",VLOOKUP(E14,barêmes!$D$5:$F$34,2,TRUE),IF(D14=\"f\",VLOOKUP(E14,barêmes!$D$5:$F$34,3,TRUE),\"\"))","v":13},10.1,{"$f":"IF(D14=\"g\",VLOOKUP(G14,barêmes!$H$5:$J$28,2,TRUE),IF(D14=\"f\",VLOOKUP(G14,barêmes!$H$5:$J$28,3,TRUE),\"\"))","v":20},6,{"$f":"IF(D14=\"g\",VLOOKUP(I14,barêmes!$L$5:$N$28,2,TRUE),IF(D14=\"f\",VLOOKUP(I14,barêmes!$L$5:$N$28,3,TRUE), \"\"))","v":20},17.666666666666668]
[null,"Vainson","Frédérique","f",30,{"$f":"IF(D15=\"g\",VLOOKUP(E15,barêmes!$D$5:$F$34,2,TRUE),IF(D15=\"f\",VLOOKUP(E15,barêmes!$D$5:$F$34,3,TRUE),\"\"))","v":20},10.5,{"$f":"IF(D15=\"g\",VLOOKUP(G15,barêmes!$H$5:$J$28,2,TRUE),IF(D15=\"f\",VLOOKUP(G15,barêmes!$H$5:$J$28,3,TRUE),\"\"))","v":19.5},5.5,{"$f":"IF(D15=\"g\",VLOOKUP(I15,barêmes!$L$5:$N$28,2,TRUE),IF(D15=\"f\",VLOOKUP(I15,barêmes!$L$5:$N$28,3,TRUE), \"\"))","v":20},19.833333333333332]

{"sheet":"TD 2 en acte secours","index":5,"n_rows":15,"n_cols":11,"rows_kept":15,"cut":false,"hidden":false,"merged":[]}
[]
[]
[]
[]
[]
[]
[]
[null,null,null,"sexe","Performance javelot(m)","note","Performance 60m plat (s)","note","Performance saut en longueur(m)","note","moyenne des notes"]
[null,"Paul","Louis","g",8,{"$f":"IF(D9=\"g\",VLOOKUP(E9,barêmes!$D$5:$F$34,2,TRUE),IF(D9=\"f\",VLOOKUP(E9,barêmes!$D$5:$F$34,3,TRUE),\"\"))","v":7},12.1,{"$f":"IF(D9=\"g\",VLOOKUP(G9,barêmes!$H$5:$J$28,2,TRUE),IF(D9=\"f\",VLOOKUP(G9,barêmes!$H$5:$J$28,3,TRUE),\"\"))","v":9.5},4.3,{"$f":"IF(D9=\"g\",VLOOKUP(I9,barêmes!$L$5:$N$28,2,TRUE),IF(D9=\"f\",VLOOKUP(I9,barêmes!$L$5:$N$28,3,TRUE), \"\"))","v":8},{"$f":"(F9+H9+J9)/3","v":8.1666666666666661}]
[null,"Rivoire","Tiffany","f",25,{"$f":"IF(D10=\"g\",VLOOKUP(E10,barêmes!$D$5:$F$34,2,TRUE),IF(D10=\"f\",VLOOKUP(E10,barêmes!$D$5:$F$34,3,TRUE),\"\"))","v":19},12,{"$f":"IF(D10=\"g\",VLOOKUP(G10,barêmes!$H$5:$J$28,2,TRUE),IF(D10=\"f\",VLOOKUP(G10,barêmes!$H$5:$J$28,3,TRUE),\"\"))","v":12},4.0999999999999996,{"$f":"IF(D10=\"g\",VLOOKUP(I10,barêmes!$L$5:$N$28,2,TRUE),IF(D10=\"f\",VLOOKUP(I10,barêmes!$L$5:$N$28,3,TRUE), \"\"))","v":8},13]
[null,"Lopez","Grégoire","g",27,{"$f":"IF(D11=\"g\",VLOOKUP(E11,barêmes!$D$5:$F$34,2,TRUE),IF(D11=\"f\",VLOOKUP(E11,barêmes!$D$5:$F$34,3,TRUE),\"\"))","v":19},12.4,{"$f":"IF(D11=\"g\",VLOOKUP(G11,barêmes!$H$5:$J$28,2,TRUE),IF(D11=\"f\",VLOOKUP(G11,barêmes!$H$5:$J$28,3,TRUE),\"\"))","v":8.5},4.8,{"$f":"IF(D11=\"g\",VLOOKUP(I11,barêmes!$L$5:$N$28,2,TRUE),IF(D11=\"f\",VLOOKUP(I11,barêmes!$L$5:$N$28,3,TRUE), \"\"))","v":13},13.5]
[null,"Gonzales","Gaétan","f",15,{"$f":"IF(D12=\"g\",VLOOKUP(E12,barêmes!$D$5:$F$34,2,TRUE),IF(D12=\"f\",VLOOKUP(E12,barêmes!$D$5:$F$34,3,TRUE),\"\"))","v":14},11.4,{"$f":"IF(D12=\"g\",VLOOKUP(G12,barêmes!$H$5:$J$28,2,TRUE),IF(D12=\"f\",VLOOKUP(G12,barêmes!$H$5:$J$28,3,TRUE),\"\"))","v":15},5,{"$f":"IF(D12=\"g\",VLOOKUP(I12,barêmes!$L$5:$N$28,2,TRUE),IF(D12=\"f\",VLOOKUP(I12,barêmes!$L$5:$N$28,3,TRUE), \"\"))","v":17},15.333333333333334]
[null,"Collin","Thierry","g",14,{"$f":"IF(D13=\"g\",VLOOKUP(E13,barêmes!$D$5:$F$34,2,TRUE),IF(D13=\"f\",VLOOKUP(E13,barêmes!$D$5:$F$34,3,TRUE),\"\"))","v":12},10.9,{"$f":"IF(D13=\"g\",VLOOKUP(G13,barêmes!$H$5:$J$28,2,TRUE),IF(D13=\"f\",VLOOKUP(G13,barêmes!$H$5:$J$28,3,TRUE),\"\"))","v":15.5},5.9,{"$f":"IF(D13=\"g\",VLOOKUP(I13,barêmes!$L$5:$N$28,2,TRUE),IF(D13=\"f\",VLOOKUP(I13,barêmes!$L$5:$N$28,3,TRUE), \"\"))","v":20},15.833333333333334]
[null,"Germain","Louis","g",15,{"$f":"IF(D14=\"g\",VLOOKUP(E14,barêmes!$D$5:$F$34,2,TRUE),IF(D14=\"f\",VLOOKUP(E14,barêmes!$D$5:$F$34,3,TRUE),\"\"))","v":13},10.1,{"$f":"IF(D14=\"g\",VLOOKUP(G14,barêmes!$H$5:$J$28,2,TRUE),IF(D14=\"f\",VLOOKUP(G14,barêmes!$H$5:$J$28,3,TRUE),\"\"))","v":20},6,{"$f":"IF(D14=\"g\",VLOOKUP(I14,barêmes!$L$5:$N$28,2,TRUE),IF(D14=\"f\",VLOOKUP(I14,barêmes!$L$5:$N$28,3,TRUE), \"\"))","v":20},17.666666666666668]
[null,"Vainson","Frédérique","f",30,{"$f":"IF(D15=\"g\",VLOOKUP(E15,barêmes!$D$5:$F$34,2,TRUE),IF(D15=\"f\",VLOOKUP(E15,barêmes!$D$5:$F$34,3,TRUE),\"\"))","v":20},10.5,{"$f":"IF(D15=\"g\",VLOOKUP(G15,barêmes!$H$5:$J$28,2,TRUE),IF(D15=\"f\",VLOOKUP(G15,barêmes!$H$5:$J$28,3,TRUE),\"\"))","v":19.5},5.5,{"$f":"IF(D15=\"g\",VLOOKUP(I15,barêmes!$L$5:$N$28,2,TRUE),IF(D15=\"f\",VLOOKUP(I15,barêmes!$L$5:$N$28,3,TRUE), \"\"))","v":20},19.833333333333332]

{"sheet":"barêmes","index":6,"n_rows":28,"n_cols":14,"rows_kept":28,"cut":false,"hidden":false,"merged":[[1,3,2,5],[1,7,2,9],[1,11,2,13]]}
[]
[null,null,null,"Barême javelot",null,null,null,"barême 60 m plat",null,null,null,"barême saut en longueur"]
[]
[null,null,null,"performance","barême garçon","barême fille",null,"perf","barême g","barême f",null,"perf","barême g","barême f"]
[null,null,null,0,0,0,null,7,20,20,null,0,0,0]
[null,null,null,8,7,10,null,10.1,20,20,null,4.0999999999999996,6,8]
[null,null,null,9,9,11,null,10.199999999999999,19,20,null,4.2,7,9]
[null,null,null,10,10,12,null,10.3,18.5,20,null,4.3,8,10]
[null,null,null,11,11,12,null,10.4,18,20,null,4.4000000000000004,9,11]
[null,null,null,12,11,13,null,10.5,17.5,19.5,null,4.5,10,12]
[null,null,null,13,12,13,null,10.6,17,19,null,4.5999999999999996,11,13]
[null,null,null,14,12,14,null,10.7,16.5,18.5,null,4.7,12,14]
[null,null,null,15,13,14,null,10.8,16,18,null,4.8,13,15]
[null,null,null,16,13,15,null,10.9,15.5,17.5,null,4.9000000000000004,14,16]
[null,null,null,17,14,15,null,11,15,17,null,5,15,17]
[null,null,null,18,14,16,null,11.1,14.5,16.5,null,5.0999999999999996,16,18]
[null,null,null,19,15,16,null,11.2,14,16,null,5.2,17,19]
[null,null,null,20,15,17,null,11.3,13.5,15.5,null,5.3,18,20]
[null,null,null,21,16,17,null,11.4,13,15,null,5.4,19,20]
[null,null,null,22,16,18,null,11.5,12.5,14.5,null,5.4999999999999902,20,20]
[null,null,null,23,17,18,null,11.6,12,14,null,5.5999999999999899,20,20]
[null,null,null,24,17,19,null,11.7,11.5,13.5,null,5.6999999999999904,20,20]
[null,null,null,25,18,19,null,11.8,11,13,null,5.7999999999999901,20,20]
[null,null,null,26,18,20,null,11.9,10.5,12.5,null,5.8999999999999897,20,20]
[null,null,null,27,19,20,null,12,10,12,null,5.9999999999999902,20,20]
[null,null,null,28,19,20,null,12.1,9.5,11.5,null,6.0999999999999899,20,20]
[null,null,null,29,20,20,null,12.2,9,11,null,6.1999999999999904,20,20]
[null,null,null,30,20,20,null,12.3,8.5,10.5,null,6.2999999999999901,20,20]

{"sheet":"guide TD3","index":7,"n_rows":18,"n_cols":1,"rows_kept":18,"cut":false,"hidden":false,"merged":[[16,0,16,16383],[9,0,9,16383],[10,0,10,16383],[12,0,12,16383],[13,0,13,16383],[15,0,15,16383]]}
[]
[]
[]
[]
[]
[]
[]
[]
[]
["Création d'une macro avec une boucle itérative dans une cellule"]
["Traduction: ajouter dans une cellule un score de 1 en 1 ou de 5 en 5"]
["Cliquer sur l'onglet développeur.\nCliquer sur le bouton Visual Basic sous l'onglet Fichier  -  dans cette nouvelle page, vous voyez apparaitre toutes les feuilles de votre document excel dans le dossier Microsoft Excel Objets et un dossier Modules dans lequel sont contenus toutes las macro créées.\nCliquer sur le bouton Insertion  -  module( un module apparait dans le dossier Modules). La page de droite va servir à inscrire votre code.\nInscrivez:\nsub essai_incrementer()  sans espace et sans accent, vous voyez directement apparaitre End Sub qui termine la macro.\nEntre ces deux lignes inscrivez:\n[b5]=[b5]+1 vous obtiendrez cela\n\nL'incrémentation se fera dans la cellule B5. Vous pouvez faire l'incrémentation dans la cellule qui vous convient pour la disposition que vous avez choisi dans la feuille.\n\n\n\n"]
["Association d'un bouton à une cellule incrémentée (manipulation vue dans guide TD2)"]
["Traduction: création d'un bouton de commande"]
["Après une légère mise en forme, vous allez obtenir quelquechose comme cela. A chaque clic sur le bouton, la cellule B5 s'incrémente de 1.\nJe vous propose de créer un autre bouton qui commande un autre critère (valorisation de point par exemple) ou l'incrémentation est de +5 dans la cellule D10."]
["Création d'une petite Application à partir d'un besoin que vous avez dans vos cours dans n'importe quelle activité pour dénombrer des actions valorisées, des critères valorisés ou faire des comptages significatifs pour vous."]
["Il est possible d'aller plus loin en liant ces comptages avec des calculs que l'on peut réaliser a postériori."]
["Voilà un modèle assez évolué d'une appli en basket en 7contre 7 réalisé sur ce principe. Nous ne pourrons pas allez aussi loin aujourd'hui mais on peut déjà s'amuser."]

{"sheet":"TD 3 en acte","index":8,"n_rows":0,"n_cols":0,"rows_kept":0,"cut":false,"hidden":false,"merged":[]}

{"sheet":"modèle simple du TD3","index":9,"n_rows":5,"n_cols":2,"rows_kept":5,"cut":false,"hidden":false,"merged":[]}
[]
[]
[]
[]
[null,7]